bitfinex/quotes_ETHUSD_20260310
["timestamp","ask_amount","ask_price","bid_price","bid_amount"]
[1773180049256,0.40487332,2030.9,2030.7,0.0011]
[1773180049462,1.63590022,2030.9,2030.7,0.0011]
[1773180051543,1.63590418,2030.9,2030.7,0.0011]
[1773180051738,1.23103086,2030.9,2030.7,0.0011]
[1773180052142,1.63578366,2031.1,2030.7,0.0011]
[1773180053678,0.40487332,2031.0,2030.7,0.0011]
[1773180055757,1.23098133,2030.9,2030.7,0.0011]
[1773180056676,1.63585465,2030.9,2030.7,0.0011]
[1773180057584,1.23098133,2030.9,2030.3,4.92634029]
[1773180057767,1.2311632,2030.6,2030.0,0.0011]
[1773180057966,1.63603652,2030.6,2030.0,0.47430797]
[1773180059984,1.63603652,2030.6,2030.0,1.7058202]
[1773180060662,1.63596395,2030.8,2030.1,0.47540797]
[1773180060876,1.63696395,2030.8,2030.1,0.47540797]
[1773180061083,1.63696395,2030.8,2030.7,0.0011]
[1773180061282,1.63696395,2030.8,2030.4,0.0011]
[1773180061578,0.40487332,2030.7,2030.4,0.0011]
[1773180062299,1.2311632,2030.6,2030.4,0.0011]
[1773180062784,1.63602309,2030.7,2030.4,0.0011]
[1773180062964,1.63602309,2030.7,2030.4,0.0022]
[1773180065654,1.63602309,2030.7,2030.4,0.0011]
[1773180065858,0.40487332,2030.6,2030.4,0.0011]
[1773180066882,0.001,2030.8,2030.4,0.0022]
[1773180067079,0.001,2030.8,2030.4,0.47650797]
[1773180068464,0.001,2030.8,2030.6,0.47430797]
[1773180070278,0.001,2030.8,2030.6,1.70546703]
[1773180070584,0.001,2030.8,2030.7,0.47430797]
[1773180070971,0.001,2030.8,2030.7,0.47540797]
[1773180073585,1.2308451,2031.2,2030.8,0.47430797]
[1773180073767,1.23178485,2031.3,2030.8,0.47540797]
[1773180074170,0.40687332,2031.3,2030.8,0.47540797]
[1773180074486,0.40687332,2031.3,2030.8,0.0011]
[1773180075001,0.40687332,2031.3,2030.8,1.70642786]
[1773180075201,0.40687332,2031.3,2030.8,0.47540797]
[1773180076498,1.23079952,2031.2,2030.8,0.47540797]
[1773180077265,1.23079952,2031.2,2030.8,1.70644761]
[1773180078081,1.23079952,2031.2,2030.9,0.47430797]
[1773180078491,1.23055719,2031.6,2031.1,0.47430797]
[1773180081392,1.23055719,2031.6,2031.2,0.49246772]
[1773180084914,1.23055719,2031.6,2031.2,1.72322641]
[1773180085150,1.23047677,2031.8,2031.3,0.49246772]
[1773180085304,18.74892848,2031.9,2031.2,1.23075869]
[1773180085305,13.22144653,2031.9,2031.2,1.23075869]
[1773180085609,13.00845883,2031.9,2031.8,0.49246772]
[1773180086408,13.00845883,2031.9,2031.8,1.72290378]
[1773180086612,0.51498895,2032.2,2031.9,0.49246772]
[1773180086926,1.74518866,2032.2,2031.9,0.49246772]
[1773180087304,0.51498895,2032.2,2031.9,0.49246772]
[1773180087523,1.74518554,2032.2,2031.9,0.49246772]
[1773180087730,0.51498895,2032.2,2031.9,0.49246772]
[1773180087926,1.74519148,2032.2,2031.9,0.49246772]
[1773180088232,12.64,2188.8,2031.9,0.49246772]
[1773180088233,1.72780742,2032.7,2031.9,0.49246772]
[1773180088395,4.91984667,2032.6,2032.1,0.49246772]
[1773180088819,1.22995178,2032.6,2032.1,0.49246772]
[1773180089396,17.92889956,2032.5,2032.1,0.49246772]
[1773180089601,5.41730597,2032.8,2032.1,0.49246772]
[1773180090540,5.41730597,2032.8,2032.1,1.7227041]
[1773180090702,5.41730597,2032.8,2032.2,0.49246772]
[1773180091208,1.72768641,2032.8,2032.2,0.49246772]
[1773180091602,17.92889956,2032.7,2032.2,0.49246772]
[1773180092804,1.22995178,2032.6,2032.2,0.49246772]
[1773180093210,1.22995178,2032.6,2032.1,1.23023638]
[1773180093211,0.49785564,2032.6,2032.1,0.49246772]
[1773180093410,18.4267552,2032.5,2032.1,0.49246772]
[1773180094736,1.23007282,2032.4,2032.1,0.49246772]
[1773180096546,19.15896042,2032.5,2032.1,0.49246772]
[1773180096720,17.72889956,2032.5,2032.3,0.49246772]
[1773180096922,9.72889956,2032.5,2032.3,0.49246772]
[1773180097330,1.22992972,2032.7,2032.3,0.49246772]
[1773180097622,17.72889956,2032.7,2032.3,0.49246772]
[1773180098243,9.72889956,2032.7,2032.3,0.49246772]
[1773180098550,1.22987769,2032.8,2032.3,0.49356772]
[1773180098750,17.72889956,2032.7,2032.3,0.49356772]
[1773180098960,18.95881093,2032.7,2032.4,0.49246772]
[1773180099418,18.95881093,2032.7,2032.6,0.49246772]
[1773180099615,17.72889956,2032.7,2032.6,0.49246772]
[1773180099813,18.95879083,2032.7,2032.6,0.49246772]
[1773180103052,18.95879083,2032.7,2032.6,0.27948002]
[1773180103728,18.95879083,2032.7,2032.5,1.798]
[1773180104051,18.95879083,2032.7,2032.5,2.29046772]
[1773180104843,17.72889956,2032.7,2032.5,2.29046772]
[1773180105045,17.72889956,2032.7,2032.5,1.798]
[1773180105243,17.72889956,2032.7,2032.6,0.49246772]
[1773180106050,18.95879083,2032.7,2032.6,0.49246772]
[1773180106234,18.95879083,2032.7,2032.5,1.798]
[1773180106556,18.95879083,2032.7,2032.5,2.29046772]
[1773180106851,17.72889956,2032.7,2032.5,2.29046772]
[1773180107049,17.72889956,2032.7,2032.5,2.27866152]
[1773180108343,18.95879663,2032.7,2032.5,2.27866152]
[1773180108546,17.72889956,2032.7,2032.5,2.27866152]
[1773180109426,17.72889956,2032.7,2032.6,0.48066152]
[1773180109628,8.0,2032.7,2032.6,0.48066152]
[1773180111354,17.67889956,2032.7,2032.6,0.48066152]
[1773180112143,9.72889956,2032.7,2032.6,0.48066152]
[1773180112856,10.95879083,2032.7,2032.5,0.0011]
[1773180113055,0.48191317,2032.5,2031.9,0.49608132]
[1773180113243,0.48191317,2032.5,2032.2,0.0011]
[1773180113446,1.23007282,2032.4,2032.2,0.0011]
[1773180113755,17.10887238,2032.4,2032.2,0.0011]
[1773180113959,7.92879956,2032.3,2032.2,0.0011]
[1773180114156,16.36071273,2032.3,2032.2,0.0011]
[1773180114531,15.87879956,2032.3,2032.2,0.0011]
[1773180116259,17.1089329,2032.3,2032.2,0.0011]
[1773180116458,15.87879956,2032.3,2032.2,0.0011]
[1773180118654,17.1089329,2032.3,2032.2,0.0011]
[1773180118858,15.87879956,2032.3,2032.2,0.0011]
[1773180119352,17.59084607,2032.3,2032.2,0.0011]
[1773180119674,17.59084607,2032.3,2032.0,1.8021]
[1773180119847,15.87879956,2032.2,2032.0,1.8021]
[1773180121451,1.23012182,2032.4,2032.1,0.49608132]
[1773180121658,1.71181483,2032.7,2032.1,0.49608132]
[1773180121858,15.87879956,2032.5,2032.1,0.49608132]
[1773180122367,1.22990166,2032.7,2032.1,0.49608132]
[1773180122583,15.87879956,2032.6,2032.1,0.49608132]
[1773180123240,15.87879956,2032.6,2032.3,0.49608132]
[1773180123738,1.22979303,2032.9,2032.3,0.49608132]
[1773180124766,1.71162945,2033.0,2032.3,0.49608132]
[1773180124945,0.48191317,2032.9,2032.3,0.49608132]
[1773180125973,0.48191317,2033.1,2032.4,1.23007282]
[1773180126174,0.48191317,2033.1,2032.6,0.49608132]
[1773180126469,0.001,2032.7,2032.6,0.49608132]
[1773180129771,0.48291317,2032.7,2032.3,0.0011]
[1773180130149,0.48191317,2032.6,2032.0,1.8051]
[1773180130353,0.48191317,2032.6,2031.8,3.03552394]
[1773180131381,0.48191317,2032.6,2031.8,3.52168161]
[1773180131545,0.48191317,2032.4,2031.8,3.52168161]
[1773180134986,1.71204651,2032.3,2031.9,0.48615767]
[1773180136785,0.48191317,2032.3,2031.9,0.48615767]
[1773180137753,1.71206248,2032.3,2031.9,1.71650587]
[1773180138482,0.48191317,2032.3,2031.9,1.71650587]
[1773180138691,1.7120498,2032.3,2031.9,1.71650587]
[1773180138981,1.7120498,2032.3,2031.9,0.48615767]
[1773180139186,0.48191317,2032.2,2032.1,0.0011]
[1773180144684,0.48191317,2032.2,2031.9,0.0011]
[1773180144685,0.4830332,2032.1,2031.9,0.0011]
[1773180146386,1.71334816,2032.0,2031.9,0.0011]
[1773180146591,1.23028353,2032.1,2031.9,0.0011]
[1773180146894,0.4830332,2032.4,2031.9,0.48835767]
[1773180147869,5.40285419,2032.6,2031.9,0.48835767]
[1773180148075,0.4830332,2032.6,2032.1,0.48725767]
[1773180148284,1.7130381,2032.6,2032.2,0.48725767]
[1773180149195,0.4830332,2032.5,2032.1,0.48725767]
[1773180150695,0.4830332,2032.4,2032.0,3.03227081]
[1773180150993,0.4830332,2032.4,2032.0,3.51952848]
[1773180151490,0.4830332,2032.4,2032.0,1.23028006]
[1773180151795,0.4830332,2032.4,2032.0,1.799]
[1773180151989,0.4830332,2032.4,2031.9,0.48835767]
[1773180152191,0.4830332,2032.4,2032.1,0.0011]
[1773180152394,0.4830332,2032.2,2032.1,0.0011]
[1773180153294,1.71322707,2032.2,2032.1,0.0011]
[1773180153499,1.71322707,2032.2,2031.9,0.0011]
[1773180153500,0.4830332,2032.1,2031.9,0.0011]
[1773180153701,0.4830332,2032.1,2031.6,0.0011]
[1773180155281,0.4830332,2031.9,2031.6,0.0011]
[1773180157377,0.4830332,2031.7,2031.6,0.0011]
[1773180159706,1.71352982,2031.7,2031.6,0.0011]
[1773180163403,0.4830332,2031.6,2031.3,0.0011]
[1773180163602,0.4830332,2031.4,2031.0,0.0011]
[1773180163806,1.71377213,2031.3,2031.1,0.0011]
[1773180163990,1.23056879,2031.6,2031.1,0.49055767]
[1773180164311,1.71349505,2031.8,2031.1,0.49055767]
[1773180164504,1.23046185,2031.8,2031.1,0.49055767]
[1773180164809,0.4830332,2031.7,2031.1,0.49055767]
[1773180165505,0.4830332,2031.7,2031.5,0.0011]
[1773180166004,1.71356282,2031.7,2031.5,0.0011]
[1773180166703,1.71356282,2031.7,2031.5,0.0022]
[1773180166704,0.4830332,2031.6,2031.5,0.0022]
[1773180167081,0.4830332,2031.6,2031.3,0.0011]
[1773180167307,0.4830332,2031.6,2031.3,0.0022]
[1773180168210,0.48719267,2031.4,2031.3,0.0022]
[1773180168591,1.23061777,2031.5,2031.3,0.0022]
[1773180168999,1.71767307,2031.8,2031.3,0.46993602]
[1773180169201,0.96838208,2032.1,2031.5,0.46883602]
[1773180169202,1.23029661,2032.1,2031.5,0.46883602]
[1773180169508,0.48719267,2032.2,2031.5,0.46883602]
[1773180169705,0.48719267,2032.2,2031.7,0.47067725]
[1773180170094,1.23114148,2032.3,2031.9,0.47067725]
[1773180170291,1.23114148,2032.3,2032.0,0.47067725]
[1773180170292,0.001,2032.3,2032.0,0.47067725]
[1773180170490,0.45787142,2032.3,2032.0,0.0011]
[1773180172816,0.45687142,2032.2,2031.6,0.47067725]
[1773180173021,0.45687142,2032.1,2031.6,0.47067725]
[1773180173994,0.45687142,2032.1,2031.0,0.0011]
[1773180173995,0.45687142,2031.5,2031.0,0.0011]
[1773180174199,0.45687142,2031.5,2030.8,0.47177725]
[1773180174398,0.45687142,2031.5,2030.8,1.70281323]
[1773180174601,0.45687142,2031.5,2030.8,0.47177725]
[1773180174806,1.23067374,2031.5,2031.1,0.47067725]
[1773180175193,3.23091371,2032.0,2031.2,0.47067725]
[1773180175194,5.37853243,2031.9,2031.2,0.47067725]
[1773180175588,0.45687142,2031.8,2031.2,0.47067725]
[1773180175815,0.45687142,2031.8,2031.0,1.70159797]
[1773180177917,1.23049662,2031.7,2031.1,0.47067725]
[1773180178215,0.001,2031.7,2031.2,0.47177725]
[1773180181107,0.45787142,2031.7,2031.2,0.0011]
[1773180183098,1.23055719,2031.6,2031.2,0.0011]
[1773180183325,0.45687142,2031.5,2031.0,0.0011]
[1773180183504,0.45687142,2031.5,2030.8,0.0011]
[1773180183505,0.45687142,2031.3,2030.8,0.0011]
[1773180185246,0.45687142,2031.1,2030.8,0.0011]
[1773180186140,0.45687142,2031.1,2030.4,0.0011]
[1773180186305,0.45687142,2030.8,2030.4,0.0011]
[1773180186508,0.45687142,2031.1,2030.4,0.47177725]
[1773180187434,1.23079952,2031.2,2030.6,0.47067725]
[1773180189241,1.68765129,2031.3,2030.7,1.70177982]
[1773180189406,0.45687142,2031.5,2030.8,0.47067725]
[1773180189600,0.45687142,2031.5,2030.6,4.9244103]
[1773180189601,0.45687142,2031.5,2030.6,0.47067725]
[1773180189803,1.23055719,2031.6,2030.4,1.2323429]
[1773180189804,0.45687142,2031.2,2030.4,1.2323429]
[1773180190034,0.45687142,2031.2,2030.4,1.23237377]
[1773180190254,0.45687142,2030.9,2030.4,0.0011]
[1773180190704,0.45687142,2030.9,2030.8,0.0011]
[1773180190901,0.45687142,2030.9,2030.4,0.0011]
[1773180191103,11.26172739,2031.6,2030.5,0.47067725]
[1773180191104,0.45787142,2031.1,2030.5,0.47067725]
[1773180191303,1.68876898,2031.1,2030.6,1.2311632]
[1773180192238,1.68876898,2031.1,2030.5,0.0011]
[1773180192239,0.45687142,2031.0,2030.5,0.0011]
[1773180192760,1.23189756,2031.1,2030.5,1.23232179]
[1773180193560,1.23187009,2031.1,2030.5,1.23232179]
[1773180194349,1.68874151,2031.1,2030.5,1.23232179]
[1773180195456,1.68874151,2031.1,2030.5,0.0011]
[1773180195660,1.68874151,2031.1,2030.3,0.0011]
[1773180195661,0.45687142,2031.0,2030.3,0.0011]
[1773180195862,0.45687142,2030.7,2030.3,0.0011]
[1773180197655,0.45687142,2030.5,2030.3,0.0011]
[1773180197956,1.23108509,2030.8,2030.3,0.0011]
[1773180198458,5.38094139,2030.9,2030.3,0.0011]
[1773180198459,1.68788082,2030.9,2030.3,0.0011]
[1773180198758,1.68785592,2030.9,2030.3,0.0011]
[1773180199831,0.49621862,2030.8,2030.3,0.0011]
[1773180200028,0.49621862,2030.7,2030.1,0.0011]
[1773180202167,0.49621862,2030.4,2029.7,0.0011]
[1773180202551,0.49621862,2030.4,2029.7,0.48694285]
[1773180202737,0.49621862,2030.6,2029.9,0.48584285]
[1773180203669,0.49621862,2030.6,2030.5,0.0011]
[1773180204138,1.72738182,2030.6,2030.5,0.0011]
[1773180204462,1.2311632,2030.6,2030.5,0.0011]
[1773180204664,0.001,2030.7,2030.5,0.0011]
[1773180206458,0.49721862,2030.7,2030.5,0.0011]
[1773180206666,0.49721862,2030.7,2030.3,0.0011]
[1773180206969,0.49721862,2030.7,2030.3,1.23243579]
[1773180207175,0.49721862,2030.7,2030.3,0.0011]
[1773180208453,1.72837,2030.7,2030.3,0.0011]
[1773180208769,8.20837,2030.7,2030.3,0.0011]
[1773180209170,1.72837,2030.7,2030.3,0.0011]
[1773180209387,0.49621862,2030.6,2030.3,0.0011]
[1773180210648,1.72744245,2030.5,2030.3,0.0011]
[1773180211444,0.49621862,2030.4,2030.0,0.0011]
[1773180214682,1.23134512,2030.3,2030.0,0.0011]
[1773180215378,1.72756374,2030.3,2030.0,0.0011]
[1773180215956,0.49621862,2030.3,2030.0,0.0011]
[1773180216657,0.49621862,2030.3,2030.2,0.0011]
[1773180218477,1.72756374,2030.3,2030.2,0.0011]
[1773180218855,1.23134512,2030.3,2030.2,0.0011]
[1773180222580,4.92522683,2030.4,2030.2,0.0011]
[1773180222786,1.23214405,2030.7,2030.2,0.48694285]
[1773180222986,4.90642684,2030.6,2030.2,0.48694285]
[1773180223481,5.40264546,2030.6,2030.2,0.0011]
[1773180225088,5.40264546,2030.6,2030.2,1.23250577]
[1773180225384,5.40264546,2030.6,2030.2,1.71834862]
[1773180225385,4.90642684,2030.6,2030.2,1.71834862]
[1773180228772,0.001,2030.4,2030.2,1.71834862]
[1773180229183,0.001,2030.4,2030.2,1.23250577]
[1773180229494,0.001,2030.4,2030.3,0.4865475]
[1773180230168,6.281,2030.7,2030.4,0.29495767]
[1773180230384,1.23094421,2031.0,2030.4,0.29495767]
[1773180230588,4.90642684,2030.9,2030.4,0.29495767]
[1773180231691,4.90642684,2030.9,2030.5,1.5261815]
[1773180231894,1.72509258,2031.1,2030.5,1.5261815]
[1773180231895,0.001,2031.1,2030.6,0.29495767]
[1773180232192,4.9231783,2031.7,2030.7,0.29495767]
[1773180232193,1.72384317,2031.5,2030.7,0.29495767]
[1773180232367,1.72382997,2031.5,2030.7,0.29495767]
[1773180233195,0.49319968,2031.4,2030.7,0.29495767]
[1773180233792,1.72389592,2031.4,2030.8,1.52599962]
[1773180234910,0.49319968,2031.4,2030.8,1.52599962]
[1773180235205,0.49319968,2031.4,2030.9,0.29495767]
[1773180235700,0.49319968,2031.4,2031.0,1.23092072]
[1773180235869,1.72388753,2031.4,2031.0,1.23092072]
[1773180236070,4.81258125,2031.3,2031.0,1.23092072]
[1773180237282,4.81258125,2031.2,2031.0,1.23092072]
[1773180239774,4.92248309,2031.5,2031.1,0.29495767]
[1773180239775,6.17778081,2031.5,2031.1,0.29495767]
[1773180239968,0.49319968,2031.3,2030.5,0.29495767]
[1773180240195,0.49319968,2031.3,2030.4,0.29495767]
[1773180240395,1.23068064,2031.2,2030.4,0.29495767]
[1773180240699,1.23068064,2031.2,2030.6,0.29495767]
[1773180240700,0.001,2031.1,2030.6,0.29495767]
[1773180240886,0.001,2031.1,2030.7,0.29495767]
[1773180241404,6.67198049,2031.1,2030.6,0.29495767]
[1773180241700,6.17778081,2031.0,2030.6,0.29495767]
[1773180241870,6.17778081,2031.0,2030.4,1.23234876]
[1773180241871,0.49319968,2030.9,2030.4,1.23234876]
[1773180242292,0.49319968,2030.9,2030.4,1.52730643]
[1773180242495,6.17778081,2030.8,2030.5,0.29495767]
[1773180242666,6.17778081,2031.0,2030.5,0.29495767]
[1773180244496,0.49319968,2030.9,2030.4,1.23233864]
[1773180244795,1.23095443,2031.0,2030.5,0.29495767]
[1773180244995,6.17778081,2030.9,2030.5,0.29495767]
[1773180245208,0.49419968,2031.1,2030.5,0.29495767]
[1773180245792,1.72507058,2031.1,2030.5,0.29495767]
[1773180246697,1.23189901,2031.1,2030.6,0.29495767]
[1773180246868,0.49319968,2031.0,2030.4,1.23233854]
[1773180248000,0.49319968,2031.0,2030.4,1.52729621]
[1773180249196,0.49319968,2031.0,2030.5,0.29495767]
[1773180249702,0.001,2031.1,2030.5,0.29495767]
[1773180249901,1.72378618,2031.6,2030.7,0.29395767]
[1773180250099,0.49319968,2031.5,2030.8,0.29395767]
[1773180250315,0.49319968,2031.5,2030.5,0.29395767]
[1773180251281,0.49319968,2031.3,2030.6,1.52512087]
[1773180252906,0.49319968,2031.3,2030.6,1.52622087]
[1773180253206,0.001,2030.8,2030.6,1.52622087]
[1773180255898,0.001,2030.8,2030.7,0.29395767]
[1773180256102,4.92303406,2031.7,2030.8,0.29295767]
[1773180256103,0.49419968,2031.7,2030.8,0.29295767]
[1773180256305,0.49419968,2031.7,2030.9,0.29295767]
[1773180256476,0.49419968,2031.7,2031.0,1.665]
[1773180256677,0.49419968,2031.7,2031.1,0.29295767]
[1773180257208,7.06780199,2032.2,2031.2,0.4865475]
[1773180257209,1.23028873,2032.1,2031.2,0.4865475]
[1773180257610,1.72348841,2032.1,2031.2,0.4865475]
[1773180257805,0.49319968,2032.1,2031.4,0.4865475]
[1773180258309,1.72345776,2032.1,2031.4,0.4865475]
[1773180258478,0.49319968,2032.1,2031.4,0.4865475]
[1773180258980,1.72345758,2032.1,2031.4,0.4865475]
[1773180259789,0.49319968,2032.1,2031.4,0.4865475]
[1773180260019,1.72345762,2032.1,2031.5,1.69264283]
[1773180265796,1.72345762,2032.1,2031.6,0.0011]
[1773180266000,0.001,2031.9,2031.6,0.0011]
[1773180266610,0.001,2031.9,2031.6,0.46312506]
[1773180267412,0.001,2032.3,2031.7,0.46202506]
[1773180267413,1.72648972,2032.3,2031.7,0.46202506]
[1773180267793,0.49535582,2032.2,2031.7,0.46202506]
[1773180269391,0.49535582,2032.2,2031.8,1.69246112]
[1773180270791,1.72555451,2032.2,2031.8,1.69246112]
[1773180271408,0.49535582,2031.9,2031.6,0.0011]
[1773180274222,1.23043606,2031.8,2031.6,0.0011]
[1773180274720,1.72579188,2031.8,2031.6,0.0011]
[1773180274923,1.72579188,2031.8,2029.3,7.33800234]
[1773180274924,0.49535582,2031.5,2029.3,7.33800234]
[1773180275132,0.49535582,2030.0,2029.2,1.23201261]
[1773180275351,0.48937899,2030.0,2029.3,0.46202506]
[1773180275496,0.48937899,2030.0,2029.4,0.46202506]
[1773180275692,0.48937899,2030.0,2029.5,1.2318305]
[1773180275894,1.72677225,2030.2,2029.5,2.80059548]
[1773180276124,1.72677225,2030.2,2029.5,1.2318305]
[1773180278503,1.72677225,2030.2,2030.1,0.0011]
[1773180278704,1.72677225,2030.2,2029.5,1.2318305]
[1773180278904,1.72677225,2030.2,2029.9,0.0011]
[1773180279130,2.104,2030.4,2029.9,0.0011]
[1773180279131,0.49535582,2030.4,2029.9,0.0011]
[1773180280920,1.72664462,2030.4,2029.9,0.0011]
[1773180281450,0.49535582,2030.4,2029.9,0.0011]
[1773180281668,0.49535582,2030.4,2026.3,7.33800234]
[1773180281669,0.49535582,2028.8,2026.3,7.33800234]
[1773180281853,0.14948499,2028.1,2026.4,0.01923798]
[1773180282034,0.14948499,2028.1,2026.4,1.23810682]
[1773180282035,3.65837891,2027.4,2026.4,1.23810682]
[1773180282222,0.49535582,2027.4,2026.4,1.23810682]
[1773180282569,1.72847256,2027.4,2026.4,1.23810682]
[1773180283236,2.42522532,2027.7,2026.5,0.46202506]
[1773180283237,0.49535582,2027.7,2026.5,0.46202506]
[1773180283843,0.49535582,2027.7,2026.6,0.46642506]
[1773180284032,0.49535582,2027.7,2026.7,1.23353234]
[1773180287826,0.47258076,2028.0,2027.0,0.48420899]
[1773180288028,0.47258076,2028.0,2027.1,0.0044]
[1773180288241,0.47258076,2028.0,2027.1,1.72189792]
[1773180288858,0.47258076,2027.9,2027.1,1.23768893]
[1773180289562,0.47258076,2027.9,2027.1,1.23328893]
[1773180290661,0.47258076,2027.9,2026.9,5.38412699]
[1773180291243,1.70539137,2027.9,2026.9,5.38412699]
[1773180291572,0.49128245,2027.8,2027.3,0.0011]
[1773180294249,1.72420151,2027.8,2027.3,0.0011]
[1773180294765,0.49128245,2027.7,2027.3,0.0011]
[1773180296883,0.49128245,2027.5,2027.0,0.0011]
[1773180297181,1.2329848,2027.6,2027.1,0.0044]
[1773180297376,1.72426725,2027.6,2027.1,0.0044]
[1773180298276,7.09476105,2027.9,2027.1,0.0044]
[1773180298277,7.5860435,2027.9,2027.1,0.0044]
[1773180298603,6.14247951,2027.9,2027.1,0.45537126]
[1773180298744,6.14247951,2027.9,2027.2,1.23322809]
[1773180298942,0.49128245,2027.8,2027.3,0.0044]
[1773180299148,0.49128245,2027.8,2027.1,1.68425221]
[1773180299464,0.49128245,2027.7,2027.0,0.0011]
[1773180299958,0.49128245,2027.7,2027.0,0.0055]
[1773180300971,0.49128245,2027.5,2027.0,0.0055]
[1773180301972,1.72421383,2027.7,2027.0,0.45647126]
[1773180302474,0.49128245,2027.6,2027.0,0.0055]
[1773180303758,1.23304562,2027.5,2027.2,0.0011]
[1773180304268,1.23304562,2027.5,2027.2,0.0055]
[1773180305859,0.49128245,2027.5,2027.2,0.0055]
[1773180308259,1.72435956,2027.5,2027.2,0.0055]
[1773180308461,0.49128245,2027.5,2027.2,0.0011]
[1773180308660,1.72437498,2027.5,2027.2,0.0011]
[1773180308865,1.23301249,2027.6,2027.3,0.0044]
[1773180309064,1.23392903,2027.7,2027.3,0.0044]
[1773180310791,0.49128245,2027.6,2027.3,0.0044]
[1773180310971,0.49128245,2027.6,2027.2,0.0011]
[1773180310972,0.49128245,2027.0,2026.8,0.0011]
[1773180311160,0.49128245,2027.0,2026.1,0.029936]
[1773180311364,0.49128245,2027.0,2026.1,1.26382721]
[1773180311565,0.49128245,2027.0,2026.1,1.71479847]
[1773180311760,0.49128245,2027.0,2026.1,0.48090726]
[1773180312180,0.49128245,2027.0,2026.1,1.71480191]
[1773180312385,1.72469307,2026.9,2026.1,0.48090726]
[1773180313980,2.92496401,2026.5,2026.1,0.029936]
[1773180314189,0.49128245,2026.5,2026.1,0.029936]
[1773180314368,1.23371496,2026.4,2026.1,0.029936]
[1773180315969,0.49128245,2026.3,2025.5,1.23422362]
[1773180316373,1.72511918,2026.2,2025.5,0.45097126]
[1773180316661,1.23383673,2026.2,2025.5,0.45097126]
[1773180317089,1.23383673,2026.2,2026.0,0.0011]
[1773180317468,1.23383673,2026.2,2025.3,9.07718701]
[1773180317469,0.49128245,2026.1,2025.3,1.627]
[1773180318492,1.23395853,2026.0,2025.3,1.627]
[1773180318806,1.23395853,2026.0,2024.9,1.68556083]
[1773180318807,0.49128245,2025.9,2024.9,1.68556083]
[1773180319702,0.49128245,2025.9,2025.0,0.45599198]
[1773180319900,1.23395853,2026.0,2025.0,0.45599198]
[1773180320301,0.48223123,2025.9,2025.0,0.45599198]
[1773180320687,1.71631159,2025.8,2025.0,1.69052654]
[1773180320896,1.23399204,2026.0,2025.1,0.45599198]
[1773180321769,0.48223123,2025.9,2025.1,0.45599198]
[1773180322086,0.48223123,2025.8,2025.0,1.69052654]
[1773180322689,1.71636791,2025.8,2025.0,1.69052654]
[1773180322934,0.48223123,2025.6,2024.7,1.69070686]
[1773180323417,0.48223123,2025.6,2024.7,1.6907405]
[1773180323708,1.71629844,2025.9,2024.8,0.45599198]
[1773180325502,1.71629844,2025.9,2025.0,0.45599198]
[1773180326077,1.7162762,2025.9,2025.0,0.45599198]
[1773180326406,1.23404497,2025.9,2025.0,0.45599198]
[1773180326908,0.48223123,2025.8,2025.0,0.45599198]
[1773180328604,1.71637251,2025.7,2025.1,1.23450693]
[1773180328798,0.48223123,2025.7,2025.1,1.23560693]
[1773180328998,0.001,2025.7,2025.1,1.69159891]
[1773180330813,1.23514128,2025.7,2025.1,1.69159891]
[1773180331023,0.48223123,2025.6,2025.1,0.0011]
[1773180331185,0.48223123,2025.6,2024.9,0.0011]
[1773180331186,0.48223123,2025.4,2024.9,0.0011]
[1773180332189,0.001,2025.7,2025.0,0.45599198]
[1773180332381,0.48323123,2025.7,2024.9,1.23571482]
[1773180332778,1.23420221,2025.6,2024.9,2.86771482]
[1773180332985,0.48223123,2028.6,2025.7,0.61610716]
[1773180333185,0.48223123,2028.3,2027.2,2.43368156]
[1773180333492,0.48223123,2027.9,2027.1,1.632]
[1773180333692,2.91591279,2027.7,2026.7,0.25731769]
[1773180333899,0.48223123,2027.6,2026.7,0.25731769]
[1773180334410,0.48223123,2027.3,2026.7,0.25731769]
[1773180335001,1.23322809,2027.2,2026.7,0.25731769]
[1773180335600,0.002,2027.1,2026.7,0.25731769]
[1773180338433,1.23322809,2027.2,2026.7,0.25731769]
[1773180338632,0.002,2027.1,2026.7,0.25731769]
[1773180339034,0.002,2027.1,2026.4,1.23371204]
[1773180339209,0.002,2027.0,2026.2,5.39131321]
[1773180340401,0.48423123,2027.0,2026.0,2.86691441]
[1773180340607,0.48423123,2027.0,2025.9,0.45599198]
[1773180340608,0.48423123,2027.0,2025.9,1.23401744]
[1773180340808,0.48423123,2027.0,2025.7,4.93647199]
[1773180341033,0.48423123,2027.0,2025.7,1.23414128]
[1773180341034,0.48223123,2026.7,2025.7,1.23414128]
[1773180341330,0.48223123,2026.7,2025.6,1.69015077]
[1773180341331,0.48223123,2026.5,2025.6,1.69015077]
[1773180342621,0.48223123,2026.5,2026.4,0.0011]
[1773180342853,1.23359321,2026.6,2025.7,0.45599198]
[1773180343049,0.002,2026.5,2025.7,0.45599198]
[1773180343351,0.002,2026.5,2025.8,1.23408036]
[1773180347422,0.47551793,2026.5,2025.6,4.93671438]
[1773180347950,0.47551793,2026.5,2025.5,1.631]
[1773180347951,0.47351793,2026.4,2025.5,1.631]
[1773180348249,0.47351793,2026.4,2025.5,2.86525848]
[1773180348448,0.47351793,2026.1,2025.1,3.34575325]
[1773180348622,0.47351793,2026.1,2025.2,4.93771384]
[1773180349017,0.47351793,2026.1,2025.1,2.85644598]
[1773180349246,0.47351793,2025.9,2025.1,2.85644598]
[1773180350134,0.002,2025.8,2025.1,3.3127884]
[1773180350338,1.69479297,2026.1,2025.1,3.3127884]
[1773180352656,0.45889534,2026.0,2025.1,3.3127884]
[1773180353449,0.002,2025.9,2025.1,3.3127884]
[1773180353644,0.45889534,2025.6,2024.9,1.23570347]
[1773180354431,0.002,2025.5,2024.9,1.23570347]
[1773180354631,0.002,2025.5,2024.9,0.0011]
[1773180355145,1.69313997,2025.6,2024.9,0.0011]
[1773180355146,0.002,2025.4,2024.9,0.0011]
[1773180355337,0.002,2025.5,2024.9,0.0011]
[1773180355537,0.46089534,2025.5,2024.9,0.0011]
[1773180355738,0.46089534,2025.5,2025.0,0.0011]
[1773180357259,1.69519653,2025.5,2025.0,0.0011]
[1773180358757,0.46089534,2025.4,2025.0,0.0011]
[1773180359255,1.23438502,2025.3,2025.0,0.0011]
[1773180359629,0.002,2025.2,2025.0,0.0011]
[1773180359828,0.002,2025.3,2025.0,0.0011]
[1773180361072,1.69279297,2026.1,2025.0,0.45744242]
[1773180361267,1.69279297,2026.1,2025.2,0.45634242]
[1773180361581,0.46089534,2026.0,2025.1,1.23450693]
[1773180362573,0.46089534,2025.9,2025.1,1.23450693]
[1773180362774,0.45889534,2025.9,2025.1,1.23450693]
[1773180363380,1.23408036,2025.8,2025.0,4.93912775]